[Event "Titled Tuesday Blitz August 15 Late 2023"]
[White "Carrasco Miranda, Andres"]
[Black "Arutla, Aditya"]
[WhiteFideId "3405990"]
[BlackFideId "30961998"]
[WhiteElo "2339"]
[BlackElo "2507"]
[Result "0-1"]
[Round "5"]
[TimeControl "180+1"]
[Date "2023.08.15"]
[WhiteClock "0:00:19"]
[BlackClock "0:00:19"]
[Board "98"]

1. d4 {[%clk 0:03:00]}  d5 {[%clk 0:02:59]} 2. c4 {[%clk 0:03:00]}  c6 {[%clk 0:02:59]} 3. Nf3 {[%clk 0:03:00]}  Nf6 {[%clk 0:03:00]} 4. Qb3 {[%clk 0:03:00]}  dxc4 {[%clk 0:02:56]} 5. Qxc4 {[%clk 0:03:01]}  Bf5 {[%clk 0:02:56]} 6. Nc3 {[%clk 0:03:01]}  e6 {[%clk 0:02:54]} 7. g3 {[%clk 0:03:01]}  Ne4 {[%clk 0:02:54]} 8. Bg2 {[%clk 0:02:59]}  Nxc3 {[%clk 0:02:53]} 9. bxc3 {[%clk 0:02:58]}  Be7 {[%clk 0:02:50]} 10. O-O {[%clk 0:02:58]}  Nd7 {[%clk 0:02:48]} 11. e3 {[%clk 0:02:58]}  O-O {[%clk 0:02:48]} 12. Qe2 {[%clk 0:02:58]}  Nf6 {[%clk 0:02:47]} 13. Nd2 {[%clk 0:02:43]}  c5 {[%clk 0:02:13]} 14. h3 {[%clk 0:02:19]}  Qa5 {[%clk 0:02:02]} 15. e4 {[%clk 0:02:06]}  Qxc3 {[%clk 0:01:50]} 16. exf5 {[%clk 0:02:00]}  Qxa1 {[%clk 0:01:49]} 17. fxe6 {[%clk 0:02:00]}  Qxd4 {[%clk 0:01:48]} 18. exf7+ {[%clk 0:01:57]}  Rxf7 {[%clk 0:01:47]} 19. Nb3 {[%clk 0:01:52]}  Qd7 {[%clk 0:01:42]} 20. Rd1 {[%clk 0:01:47]}  Qc7 {[%clk 0:01:34]} 21. Bf4 {[%clk 0:01:45]}  Qb6 {[%clk 0:01:32]} 22. Qc4 {[%clk 0:01:36]}  Rd8 {[%clk 0:01:26]} 23. Re1 {[%clk 0:01:31]}  Bd6 {[%clk 0:01:22]} 24. Bg5 {[%clk 0:01:23]}  Qb4 {[%clk 0:01:08]} 25. Qe6 {[%clk 0:00:48]}  Re8 {[%clk 0:00:57]} 26. Qxe8+ {[%clk 0:00:48]}  Nxe8 {[%clk 0:00:57]} 27. Rxe8+ {[%clk 0:00:48]}  Rf8 {[%clk 0:00:58]} 28. Bd5+ {[%clk 0:00:47]}  Kh8 {[%clk 0:00:58]} 29. Re6 {[%clk 0:00:40]}  c4 {[%clk 0:00:51]} 30. Nd4 {[%clk 0:00:38]}  Bc5 {[%clk 0:00:44]} 31. Be3 {[%clk 0:00:33]}  c3 {[%clk 0:00:40]} 32. Re4 {[%clk 0:00:22]}  Qb1+ {[%clk 0:00:36]} 33. Kg2 {[%clk 0:00:20]}  c2 {[%clk 0:00:24]} 34. Ne6 {[%clk 0:00:20]}  Bxe3 {[%clk 0:00:21]} 35. Nxf8 {[%clk 0:00:20]}  c1=Q {[%clk 0:00:20]} 36. Ng6+ {[%clk 0:00:20]}  hxg6 {[%clk 0:00:20]} 37. Re8+ {[%clk 0:00:19]}  Kh7 {[%clk 0:00:20]} 38. Bg8+ {[%clk 0:00:19]}  Kh6 {[%clk 0:00:21]} 39. Bd5 {[%clk 0:00:19]}  Qh1# {[%clk 0:00:19]} 0-1


[Site "https://www.chess.com"]

[Event "Titled Tuesday Blitz August 15 Late 2023"]
[White "De Souza, Cristiano Gomes"]
[Black "arenal72"]
[WhiteFideId "2151758"]
[WhiteElo "2265"]
[BlackElo "2496"]
[Result "0-1"]
[Round "5"]
[TimeControl "180+1"]
[Date "2023.08.15"]
[WhiteClock "0:00:35"]
[BlackClock "0:00:20"]
[Board "102"]

1. d4 {[%clk 0:03:00]}  d6 {[%clk 0:02:59]} 2. c4 {[%clk 0:03:00]}  e5 {[%clk 0:02:58]} 3. dxe5 {[%clk 0:03:00]}  dxe5 {[%clk 0:02:58]} 4. Qxd8+ {[%clk 0:03:01]}  Kxd8 {[%clk 0:02:59]} 5. Nc3 {[%clk 0:03:01]}  Be6 {[%clk 0:02:59]} 6. e4 {[%clk 0:03:00]}  c6 {[%clk 0:02:59]} 7. Be3 {[%clk 0:02:59]}  f6 {[%clk 0:02:58]} 8. O-O-O+ {[%clk 0:03:00]}  Nd7 {[%clk 0:02:58]} 9. Bd3 {[%clk 0:02:59]}  Kc7 {[%clk 0:02:57]} 10. Nge2 {[%clk 0:02:58]}  Bc5 {[%clk 0:02:57]} 11. Bxc5 {[%clk 0:02:56]}  Nxc5 {[%clk 0:02:57]} 12. b3 {[%clk 0:02:56]}  a5 {[%clk 0:02:55]} 13. Kb2 {[%clk 0:02:53]}  Nh6 {[%clk 0:02:55]} 14. f3 {[%clk 0:02:53]}  Nf7 {[%clk 0:02:54]} 15. Bc2 {[%clk 0:02:51]}  Rhd8 {[%clk 0:02:51]} 16. Rxd8 {[%clk 0:02:49]}  Rxd8 {[%clk 0:02:51]} 17. Rd1 {[%clk 0:02:49]}  Nd6 {[%clk 0:02:51]} 18. Nc1 {[%clk 0:02:48]}  g5 {[%clk 0:02:39]} 19. Nd3 {[%clk 0:02:47]}  Nxd3+ {[%clk 0:02:39]} 20. Rxd3 {[%clk 0:02:47]}  b6 {[%clk 0:02:37]} 21. a3 {[%clk 0:02:44]}  h5 {[%clk 0:02:34]} 22. Kc1 {[%clk 0:02:38]}  g4 {[%clk 0:02:31]} 23. Kd2 {[%clk 0:02:37]}  Rg8 {[%clk 0:02:25]} 24. Ke1 {[%clk 0:02:29]}  gxf3 {[%clk 0:02:22]} 25. gxf3 {[%clk 0:02:29]}  Rg2 {[%clk 0:02:20]} 26. Rd2 {[%clk 0:02:28]}  Rg1+ {[%clk 0:02:21]} 27. Kf2 {[%clk 0:02:28]}  Ra1 {[%clk 0:02:21]} 28. a4 {[%clk 0:02:15]}  h4 {[%clk 0:02:16]} 29. Ke3 {[%clk 0:02:13]}  Rg1 {[%clk 0:02:12]} 30. Kf2 {[%clk 0:02:09]}  Rh1 {[%clk 0:02:12]} 31. Kg2 {[%clk 0:02:01]}  Rc1 {[%clk 0:02:10]} 32. Kf2 {[%clk 0:01:56]}  Nf7 {[%clk 0:02:00]} 33. Ne2 {[%clk 0:01:50]}  Rh1 {[%clk 0:01:56]} 34. Kg2 {[%clk 0:01:47]}  Ra1 {[%clk 0:01:55]} 35. f4 {[%clk 0:01:37]}  Bg4 {[%clk 0:01:49]} 36. fxe5 {[%clk 0:01:29]}  fxe5 {[%clk 0:01:35]} 37. Kf2 {[%clk 0:01:19]}  Ng5 {[%clk 0:01:31]} 38. Nc3 {[%clk 0:00:59]}  Nh3+ {[%clk 0:01:23]} 39. Ke3 {[%clk 0:00:54]}  Re1+ {[%clk 0:01:23]} 40. Ne2 {[%clk 0:00:48]}  Nf4 {[%clk 0:01:18]} 41. Bd3 {[%clk 0:00:46]}  Kd6 {[%clk 0:00:15]} 42. h3 {[%clk 0:00:37]}  Bxe2 {[%clk 0:00:11]} 43. Bxe2+ {[%clk 0:00:32]}  Kc5 {[%clk 0:00:09]} 44. Kf2 {[%clk 0:00:29]}  Rxe2+ {[%clk 0:00:10]} 45. Rxe2 {[%clk 0:00:29]}  Nxe2 {[%clk 0:00:10]} 46. Kxe2 {[%clk 0:00:29]}  Kb4 {[%clk 0:00:11]} 47. Kf3 {[%clk 0:00:29]}  Kxb3 {[%clk 0:00:11]} 48. Kg4 {[%clk 0:00:29]}  Kxc4 {[%clk 0:00:12]} 49. Kxh4 {[%clk 0:00:29]}  b5 {[%clk 0:00:13]} 50. Kg5 {[%clk 0:00:30]}  b4 {[%clk 0:00:10]} 51. h4 {[%clk 0:00:30]}  b3 {[%clk 0:00:11]} 52. h5 {[%clk 0:00:31]}  b2 {[%clk 0:00:12]} 53. h6 {[%clk 0:00:32]}  b1=Q {[%clk 0:00:12]} 54. h7 {[%clk 0:00:32]}  Qh1 {[%clk 0:00:13]} 55. Kg6 {[%clk 0:00:33]}  Kb4 {[%clk 0:00:13]} 56. Kg7 {[%clk 0:00:33]}  c5 {[%clk 0:00:14]} 57. h8=Q {[%clk 0:00:32]}  Qxh8+ {[%clk 0:00:15]} 58. Kxh8 {[%clk 0:00:32]}  c4 {[%clk 0:00:15]} 59. Kg7 {[%clk 0:00:33]}  c3 {[%clk 0:00:16]} 60. Kf6 {[%clk 0:00:34]}  c2 {[%clk 0:00:17]} 61. Ke6 {[%clk 0:00:35]}  c1=Q {[%clk 0:00:18]} 62. Kxe5 {[%clk 0:00:35]}  Qc5+ {[%clk 0:00:18]} 63. Kf6 {[%clk 0:00:35]}  Kxa4 {[%clk 0:00:18]} 64. e5 {[%clk 0:00:36]}  Kb4 {[%clk 0:00:19]} 65. e6 {[%clk 0:00:36]}  a4 {[%clk 0:00:19]} 66. e7 {[%clk 0:00:37]}  Qxe7+ {[%clk 0:00:19]} 67. Kxe7 {[%clk 0:00:35]}  a3 {[%clk 0:00:20]} 0-1


[Site "https://www.chess.com"]

[Event "Titled Tuesday Blitz August 15 Late 2023"]
[White "Kovacevic, Radmila"]
[Black "Tomb, Maroun"]
[WhiteFideId "933171"]
[BlackFideId "5300398"]
[WhiteElo "2240"]
[BlackElo "2492"]
[Result "0-1"]
[Round "5"]
[TimeControl "180+1"]
[Date "2023.08.15"]
[WhiteClock "0:00:10"]
[BlackClock "0:00:09"]
[Board "103"]

1. e4 {[%clk 0:03:00]}  d6 {[%clk 0:03:00]} 2. d4 {[%clk 0:02:58]}  Nf6 {[%clk 0:03:00]} 3. Qd3 {[%clk 0:02:49]}  e5 {[%clk 0:02:59]} 4. dxe5 {[%clk 0:02:49]}  dxe5 {[%clk 0:02:59]} 5. Qxd8+ {[%clk 0:02:49]}  Kxd8 {[%clk 0:02:59]} 6. Bd3 {[%clk 0:02:47]}  Be6 {[%clk 0:02:58]} 7. Bg5 {[%clk 0:02:45]}  c6 {[%clk 0:02:58]} 8. Nf3 {[%clk 0:02:43]}  Nd7 {[%clk 0:02:57]} 9. Nbd2 {[%clk 0:02:42]}  Kc7 {[%clk 0:02:57]} 10. Nc4 {[%clk 0:02:41]}  h6 {[%clk 0:02:54]} 11. Bh4 {[%clk 0:02:34]}  Nxe4 {[%clk 0:02:35]} 12. Ncxe5 {[%clk 0:02:28]}  Ndc5 {[%clk 0:02:20]} 13. O-O-O {[%clk 0:02:20]}  g5 {[%clk 0:02:13]} 14. Bxe4 {[%clk 0:02:14]}  Nxe4 {[%clk 0:02:11]} 15. Rhe1 {[%clk 0:02:10]}  gxh4 {[%clk 0:01:33]} 16. Rxe4 {[%clk 0:02:08]}  h3 {[%clk 0:01:33]} 17. gxh3 {[%clk 0:02:07]}  Bd6 {[%clk 0:01:27]} 18. Nc4 {[%clk 0:01:54]}  Bc5 {[%clk 0:01:15]} 19. Nfe5 {[%clk 0:01:37]}  Bxf2 {[%clk 0:00:49]} 20. Rf4 {[%clk 0:01:32]}  Bc5 {[%clk 0:00:45]} 21. Nxf7 {[%clk 0:01:23]}  Rhf8 {[%clk 0:00:45]} 22. Rdf1 {[%clk 0:01:08]}  b5 {[%clk 0:00:45]} 23. Nd2 {[%clk 0:00:55]}  Be3 {[%clk 0:00:16]} 24. R4f3 {[%clk 0:00:54]}  Bc4 {[%clk 0:00:14]} 25. Re1 {[%clk 0:00:44]}  Bxd2+ {[%clk 0:00:08]} 26. Kxd2 {[%clk 0:00:45]}  Rad8+ {[%clk 0:00:08]} 27. Kc3 {[%clk 0:00:44]}  Rxf7 {[%clk 0:00:07]} 28. Rxf7+ {[%clk 0:00:43]}  Bxf7 {[%clk 0:00:08]} 29. a3 {[%clk 0:00:33]}  a5 {[%clk 0:00:09]} 30. b3 {[%clk 0:00:31]}  Rd7 {[%clk 0:00:09]} 31. Re5 {[%clk 0:00:30]}  Bd5 {[%clk 0:00:09]} 32. Rh5 {[%clk 0:00:25]}  Rd6 {[%clk 0:00:10]} 33. Rf5 {[%clk 0:00:17]}  Rg6 {[%clk 0:00:10]} 34. Kd4 {[%clk 0:00:14]}  b4 {[%clk 0:00:06]} 35. axb4 {[%clk 0:00:13]}  axb4 {[%clk 0:00:07]} 36. c4 {[%clk 0:00:14]}  bxc3 {[%clk 0:00:08]} 37. Kxc3 {[%clk 0:00:14]}  Rg2 {[%clk 0:00:07]} 38. Rf6 {[%clk 0:00:13]}  h5 {[%clk 0:00:07]} 39. Rf5 {[%clk 0:00:12]}  Rxh2 {[%clk 0:00:05]} 40. Rxh5 {[%clk 0:00:12]}  Kb6 {[%clk 0:00:06]} 41. b4 {[%clk 0:00:11]}  Kb5 {[%clk 0:00:05]} 42. Rh4 {[%clk 0:00:09]}  Rg2 {[%clk 0:00:05]} 43. Rh5 {[%clk 0:00:09]}  Rg3+ {[%clk 0:00:05]} 44. Kd4 {[%clk 0:00:10]}  Kxb4 {[%clk 0:00:05]} 45. h4 {[%clk 0:00:10]}  Bf7 {[%clk 0:00:02]} 46. Rh6 {[%clk 0:00:09]}  c5+ {[%clk 0:00:03]} 47. Ke5 {[%clk 0:00:09]}  Bc4 {[%clk 0:00:04]} 48. Rc6 {[%clk 0:00:09]}  Bb5 {[%clk 0:00:04]} 49. Rb6 {[%clk 0:00:08]}  Rh3 {[%clk 0:00:05]} 50. Rh6 {[%clk 0:00:08]}  c4 {[%clk 0:00:06]} 51. Kd4 {[%clk 0:00:08]}  c3 {[%clk 0:00:06]} 52. h5 {[%clk 0:00:08]}  Rd3+ {[%clk 0:00:07]} 53. Ke4 {[%clk 0:00:08]}  c2 {[%clk 0:00:08]} 54. Rb6 {[%clk 0:00:08]}  Rc3 {[%clk 0:00:08]} 55. h6 {[%clk 0:00:07]}  c1=Q {[%clk 0:00:08]} 56. Rxb5+ {[%clk 0:00:07]}  Kxb5 {[%clk 0:00:08]} 57. h7 {[%clk 0:00:08]}  Qc2+ {[%clk 0:00:09]} 58. Ke5 {[%clk 0:00:08]}  Qxh7 {[%clk 0:00:10]} 59. Kf6 {[%clk 0:00:08]}  Rc6+ {[%clk 0:00:09]} 60. Ke5 {[%clk 0:00:09]}  Qd7 {[%clk 0:00:09]} 61. Kf4 {[%clk 0:00:10]}  Re6 {[%clk 0:00:09]} 62. Kg3 {[%clk 0:00:09]}  Qf7 {[%clk 0:00:09]} 63. Kh4 {[%clk 0:00:10]} 0-1


[Site "https://www.chess.com"]

[Event "Titled Tuesday Blitz August 15 Late 2023"]
[White "Bryant, Todd"]
[Black "Janaszak, Dawid"]
[WhiteFideId "2031299"]
[BlackFideId "1119206"]
[WhiteElo "2368"]
[BlackElo "2495"]
[Result "0-1"]
[Round "5"]
[TimeControl "180+1"]
[Date "2023.08.15"]
[WhiteClock "0:00:08"]
[BlackClock "0:01:08"]
[Board "108"]

1. e4 {[%clk 0:03:00]}  e5 {[%clk 0:02:59]} 2. f4 {[%clk 0:02:58]}  f5 {[%clk 0:02:57]} 3. exf5 {[%clk 0:02:56]}  Qe7 {[%clk 0:02:33]} 4. Qh5+ {[%clk 0:02:36]}  Kd8 {[%clk 0:02:32]} 5. Nf3 {[%clk 0:01:58]}  exf4+ {[%clk 0:02:30]} 6. Kd1 {[%clk 0:01:57]}  Nf6 {[%clk 0:02:25]} 7. Qh4 {[%clk 0:01:57]}  Ne4 {[%clk 0:02:14]} 8. Qe1 {[%clk 0:01:41]}  d6 {[%clk 0:01:53]} 9. d3 {[%clk 0:01:26]}  Nf6 {[%clk 0:01:53]} 10. Qxe7+ {[%clk 0:01:06]}  Bxe7 {[%clk 0:01:52]} 11. Bxf4 {[%clk 0:01:07]}  Bxf5 {[%clk 0:01:51]} 12. Nc3 {[%clk 0:01:06]}  Nc6 {[%clk 0:01:50]} 13. h3 {[%clk 0:01:02]}  Rf8 {[%clk 0:01:49]} 14. g4 {[%clk 0:00:59]}  Nxg4 {[%clk 0:01:46]} 15. hxg4 {[%clk 0:01:00]}  Bxg4 {[%clk 0:01:46]} 16. Be2 {[%clk 0:00:44]}  Rxf4 {[%clk 0:01:41]} 17. Nd2 {[%clk 0:00:32]}  h6 {[%clk 0:01:34]} 18. Nd5 {[%clk 0:00:26]}  Bxe2+ {[%clk 0:01:32]} 19. Kxe2 {[%clk 0:00:26]}  Rf5 {[%clk 0:01:29]} 20. Nxe7 {[%clk 0:00:24]}  Kxe7 {[%clk 0:01:30]} 21. Rag1 {[%clk 0:00:25]}  Kf7 {[%clk 0:01:29]} 22. Ne4 {[%clk 0:00:23]}  Re8 {[%clk 0:01:28]} 23. Kd2 {[%clk 0:00:23]}  d5 {[%clk 0:01:26]} 24. Nc5 {[%clk 0:00:19]}  Nd4 {[%clk 0:01:26]} 25. Rf1 {[%clk 0:00:10]}  Nf3+ {[%clk 0:01:18]} 26. Kc3 {[%clk 0:00:09]}  d4+ {[%clk 0:01:16]} 27. Kc4 {[%clk 0:00:10]}  Nd2+ {[%clk 0:01:16]} 28. Kb4 {[%clk 0:00:10]}  a5+ {[%clk 0:01:09]} 29. Kb5 {[%clk 0:00:08]}  Nxf1 {[%clk 0:01:08]} 0-1


[Site "https://www.chess.com"]

[Event "Titled Tuesday Blitz August 15 Late 2023"]
[White "Baches Garcia, Guillermo"]
[Black "Harish, Neeraj"]
[WhiteFideId "2209764"]
[BlackFideId "30958130"]
[WhiteElo "2462"]
[BlackElo "2329"]
[Result "1-0"]
[Round "5"]
[TimeControl "180+1"]
[Date "2023.08.15"]
[WhiteClock "0:00:46"]
[BlackClock "0:00:00"]
[Board "112"]

1. e4 {[%clk 0:03:00]}  c6 {[%clk 0:02:57]} 2. d4 {[%clk 0:03:00]}  d5 {[%clk 0:02:57]} 3. e5 {[%clk 0:03:01]}  Bf5 {[%clk 0:02:57]} 4. h4 {[%clk 0:03:00]}  h5 {[%clk 0:02:57]} 5. Bd3 {[%clk 0:03:01]}  Bxd3 {[%clk 0:02:57]} 6. Qxd3 {[%clk 0:03:01]}  Qa5+ {[%clk 0:02:58]} 7. Nd2 {[%clk 0:03:01]}  e6 {[%clk 0:02:55]} 8. Nf3 {[%clk 0:03:01]}  Nh6 {[%clk 0:02:52]} 9. O-O {[%clk 0:02:59]}  Qa6 {[%clk 0:02:48]} 10. c4 {[%clk 0:02:58]}  Nf5 {[%clk 0:02:49]} 11. b3 {[%clk 0:02:57]}  Nd7 {[%clk 0:02:48]} 12. a4 {[%clk 0:02:57]}  Be7 {[%clk 0:02:42]} 13. Ba3 {[%clk 0:02:57]}  Bxa3 {[%clk 0:02:40]} 14. Rxa3 {[%clk 0:02:56]}  O-O {[%clk 0:02:39]} 15. b4 {[%clk 0:02:46]}  b6 {[%clk 0:02:24]} 16. Qc2 {[%clk 0:02:35]}  Rac8 {[%clk 0:02:22]} 17. Rc1 {[%clk 0:02:27]}  Qb7 {[%clk 0:02:19]} 18. Rc3 {[%clk 0:02:12]}  dxc4 {[%clk 0:01:51]} 19. Rxc4 {[%clk 0:01:59]}  c5 {[%clk 0:01:10]} 20. bxc5 {[%clk 0:01:43]}  bxc5 {[%clk 0:01:11]} 21. dxc5 {[%clk 0:01:41]}  Qd5 {[%clk 0:01:09]} 22. Qe4 {[%clk 0:01:33]}  Qxe4 {[%clk 0:00:19]} 23. Nxe4 {[%clk 0:01:32]}  Nb8 {[%clk 0:00:19]} 24. c6 {[%clk 0:01:22]}  Rc7 {[%clk 0:00:18]} 25. Nd6 {[%clk 0:01:20]}  Ne7 {[%clk 0:00:14]} 26. Nd4 {[%clk 0:01:16]}  Nd5 {[%clk 0:00:11]} 27. N6b5 {[%clk 0:01:13]}  Rcc8 {[%clk 0:00:08]} 28. Nxa7 {[%clk 0:01:09]}  Rc7 {[%clk 0:00:08]} 29. Ndb5 {[%clk 0:01:06]}  Rxa7 {[%clk 0:00:04]} 30. Nxa7 {[%clk 0:01:05]}  Na6 {[%clk 0:00:05]} 31. Nb5 {[%clk 0:01:02]}  Nac7 {[%clk 0:00:04]} 32. Nxc7 {[%clk 0:01:02]}  Nxc7 {[%clk 0:00:05]} 33. Rd1 {[%clk 0:01:02]}  Rc8 {[%clk 0:00:04]} 34. Rd7 {[%clk 0:01:01]}  Kf8 {[%clk 0:00:05]} 35. Rb4 {[%clk 0:00:53]}  Ke8 {[%clk 0:00:05]} 36. Rb7 {[%clk 0:00:53]}  Nd5 {[%clk 0:00:03]} 37. Rxf7 {[%clk 0:00:51]}  Rxc6 {[%clk 0:00:03]} 38. Rxg7 {[%clk 0:00:50]}  Kf8 {[%clk 0:00:03]} 39. Rh7 {[%clk 0:00:47]}  Kg8 {[%clk 0:00:03]} 40. Rhd7 {[%clk 0:00:47]}  Rc8 {[%clk 0:00:00]} 41. a5 {[%clk 0:00:46]} 1-0


[Site "https://www.chess.com"]

[Event "Titled Tuesday Blitz August 15 Late 2023"]
[White "Kielinkei"]
[Black "Coelho, Ramyres Santana"]
[BlackFideId "2120690"]
[WhiteElo "2407"]
[BlackElo "2291"]
[Result "0-1"]
[Round "5"]
[TimeControl "180+1"]
[Date "2023.08.15"]
[WhiteClock "0:00:01"]
[BlackClock "0:01:29"]
[Board "118"]

1. d4 {[%clk 0:03:00]}  Nf6 {[%clk 0:02:58]} 2. c4 {[%clk 0:03:01]}  g6 {[%clk 0:02:57]} 3. Nc3 {[%clk 0:03:00]}  d6 {[%clk 0:02:56]} 4. e4 {[%clk 0:03:00]}  Bg7 {[%clk 0:02:56]} 5. Be2 {[%clk 0:02:57]}  O-O {[%clk 0:02:56]} 6. Be3 {[%clk 0:02:56]}  e5 {[%clk 0:02:56]} 7. d5 {[%clk 0:02:55]}  Na6 {[%clk 0:02:55]} 8. g4 {[%clk 0:02:55]}  Nd7 {[%clk 0:02:46]} 9. Qd2 {[%clk 0:02:50]}  f5 {[%clk 0:02:43]} 10. gxf5 {[%clk 0:02:50]}  gxf5 {[%clk 0:02:44]} 11. exf5 {[%clk 0:02:46]}  Rxf5 {[%clk 0:02:45]} 12. O-O-O {[%clk 0:02:43]}  Ndc5 {[%clk 0:02:40]} 13. Kb1 {[%clk 0:02:37]}  Rf8 {[%clk 0:02:33]} 14. Nf3 {[%clk 0:02:24]}  Nb4 {[%clk 0:02:32]} 15. Rc1 {[%clk 0:02:01]}  Bf5+ {[%clk 0:02:30]} 16. Ka1 {[%clk 0:02:02]}  c6 {[%clk 0:02:23]} 17. Bxc5 {[%clk 0:01:48]}  dxc5 {[%clk 0:02:17]} 18. dxc6 {[%clk 0:00:46]}  Qa5 {[%clk 0:01:57]} 19. Rhd1 {[%clk 0:00:20]}  Rad8 {[%clk 0:01:53]} 20. Qe3 {[%clk 0:00:06]}  e4 {[%clk 0:01:49]} 21. a3 {[%clk 0:00:03]}  exf3 {[%clk 0:01:45]} 22. Bxf3 {[%clk 0:00:03]}  Nc2+ {[%clk 0:01:36]} 23. Rxc2 {[%clk 0:00:03]}  Bxc2 {[%clk 0:01:34]} 24. Rxd8 {[%clk 0:00:03]}  Rxd8 {[%clk 0:01:32]} 25. Qe6+ {[%clk 0:00:01]}  Kh8 {[%clk 0:01:32]} 26. cxb7 {[%clk 0:00:02]}  Bxc3 {[%clk 0:01:30]} 27. Qc8 {[%clk 0:00:01]}  Qxa3# {[%clk 0:01:29]} 0-1


[Site "https://www.chess.com"]

[Event "Titled Tuesday Blitz August 15 Late 2023"]
[White "Zampronha, Wladimir Camilo"]
[Black "KorolDimitriy75"]
[WhiteFideId "2103087"]
[WhiteElo "2245"]
[BlackElo "2405"]
[Result "1-0"]
[Round "5"]
[TimeControl "180+1"]
[Date "2023.08.15"]
[WhiteClock "0:00:35"]
[BlackClock "0:00:00"]
[Board "119"]

1. e4 {[%clk 0:03:00]}  c5 {[%clk 0:02:54]} 2. Nf3 {[%clk 0:03:00]}  d6 {[%clk 0:02:54]} 3. d4 {[%clk 0:03:01]}  cxd4 {[%clk 0:02:55]} 4. Nxd4 {[%clk 0:03:01]}  Nf6 {[%clk 0:02:55]} 5. Nc3 {[%clk 0:03:02]}  g6 {[%clk 0:02:55]} 6. Be3 {[%clk 0:03:01]}  Bg7 {[%clk 0:02:56]} 7. f3 {[%clk 0:03:01]}  O-O {[%clk 0:02:56]} 8. Qd2 {[%clk 0:03:02]}  Nc6 {[%clk 0:02:56]} 9. Bc4 {[%clk 0:03:02]}  Bd7 {[%clk 0:02:56]} 10. O-O-O {[%clk 0:03:01]}  Qa5 {[%clk 0:02:56]} 11. Bb3 {[%clk 0:02:57]}  Rfc8 {[%clk 0:02:56]} 12. h4 {[%clk 0:02:55]}  Ne5 {[%clk 0:02:56]} 13. Kb1 {[%clk 0:02:52]}  b5 {[%clk 0:02:53]} 14. h5 {[%clk 0:02:47]}  Nc4 {[%clk 0:02:53]} 15. Bxc4 {[%clk 0:02:46]}  bxc4 {[%clk 0:02:54]} 16. Ka1 {[%clk 0:02:44]}  Rab8 {[%clk 0:02:52]} 17. Rb1 {[%clk 0:02:40]}  Rb6 {[%clk 0:02:40]} 18. hxg6 {[%clk 0:02:38]}  fxg6 {[%clk 0:02:40]} 19. Bh6 {[%clk 0:02:27]}  Bh8 {[%clk 0:02:37]} 20. g4 {[%clk 0:02:25]}  Rcb8 {[%clk 0:01:56]} 21. Be3 {[%clk 0:02:23]}  Ra6 {[%clk 0:01:18]} 22. Nde2 {[%clk 0:02:22]}  Qb4 {[%clk 0:01:07]} 23. Nc1 {[%clk 0:01:59]}  e5 {[%clk 0:00:21]} 24. Qh2 {[%clk 0:01:13]}  Be6 {[%clk 0:00:18]} 25. Bg5 {[%clk 0:01:11]}  d5 {[%clk 0:00:14]} 26. Bxf6 {[%clk 0:01:09]}  Bxf6 {[%clk 0:00:13]} 27. Qxh7+ {[%clk 0:01:07]}  Kf8 {[%clk 0:00:13]} 28. Qxg6 {[%clk 0:01:07]}  Bf7 {[%clk 0:00:13]} 29. Rh8+ {[%clk 0:00:56]}  Bxh8 {[%clk 0:00:12]} 30. Qxa6 {[%clk 0:00:55]}  d4 {[%clk 0:00:11]} 31. Nd5 {[%clk 0:00:51]}  Bxd5 {[%clk 0:00:10]} 32. exd5 {[%clk 0:00:52]}  e4 {[%clk 0:00:09]} 33. Qh6+ {[%clk 0:00:41]}  Bg7 {[%clk 0:00:09]} 34. Qf4+ {[%clk 0:00:42]}  Kg8 {[%clk 0:00:08]} 35. Qxe4 {[%clk 0:00:41]}  d3 {[%clk 0:00:09]} 36. Qe6+ {[%clk 0:00:41]}  Kh8 {[%clk 0:00:00]} 37. Nxd3 {[%clk 0:00:35]} 1-0


[Site "https://www.chess.com"]

[Event "Titled Tuesday Blitz August 15 Late 2023"]
[White "Ochirbat, Lkhagvajamts"]
[Black "Verony64"]
[WhiteFideId "4903153"]
[WhiteElo "2689"]
[BlackElo "2176"]
[Result "1-0"]
[Round "5"]
[TimeControl "180+1"]
[Date "2023.08.15"]
[WhiteClock "0:00:36"]
[BlackClock "0:00:13"]
[Board "120"]

1. d4 {[%clk 0:03:00]}  c5 {[%clk 0:02:57]} 2. d5 {[%clk 0:02:59]}  e5 {[%clk 0:02:56]} 3. Nc3 {[%clk 0:02:59]}  d6 {[%clk 0:02:56]} 4. e4 {[%clk 0:02:59]}  g6 {[%clk 0:02:57]} 5. Be2 {[%clk 0:02:50]}  Bg7 {[%clk 0:02:57]} 6. Nf3 {[%clk 0:02:51]}  a6 {[%clk 0:02:56]} 7. O-O {[%clk 0:02:52]}  Nf6 {[%clk 0:02:48]} 8. a4 {[%clk 0:02:51]}  O-O {[%clk 0:02:47]} 9. Nd2 {[%clk 0:02:51]}  Nbd7 {[%clk 0:02:45]} 10. Nc4 {[%clk 0:02:51]}  Qc7 {[%clk 0:02:43]} 11. Be3 {[%clk 0:02:49]}  Rb8 {[%clk 0:02:36]} 12. a5 {[%clk 0:02:41]}  b5 {[%clk 0:02:31]} 13. axb6 {[%clk 0:02:41]}  Nxb6 {[%clk 0:02:31]} 14. Nxb6 {[%clk 0:02:31]}  Rxb6 {[%clk 0:02:30]} 15. b3 {[%clk 0:02:31]}  Rb4 {[%clk 0:02:11]} 16. f3 {[%clk 0:02:23]}  a5 {[%clk 0:01:38]} 17. Nb5 {[%clk 0:02:08]}  Qb8 {[%clk 0:01:37]} 18. c4 {[%clk 0:02:06]}  Nh5 {[%clk 0:01:31]} 19. Rxa5 {[%clk 0:02:05]}  f5 {[%clk 0:01:30]} 20. Bd2 {[%clk 0:02:01]}  Nf4 {[%clk 0:01:28]} 21. Bxb4 {[%clk 0:01:59]}  cxb4 {[%clk 0:01:29]} 22. Ra1 {[%clk 0:01:56]}  Qb6+ {[%clk 0:01:27]} 23. Kh1 {[%clk 0:01:55]}  fxe4 {[%clk 0:01:25]} 24. fxe4 {[%clk 0:01:56]}  Qe3 {[%clk 0:01:25]} 25. Nxd6 {[%clk 0:01:31]}  Nxe2 {[%clk 0:01:02]} 26. Rxf8+ {[%clk 0:01:30]}  Bxf8 {[%clk 0:01:01]} 27. Nxc8 {[%clk 0:01:24]}  Ng3+ {[%clk 0:00:40]} 28. hxg3 {[%clk 0:01:16]}  Qh6+ {[%clk 0:00:39]} 29. Kg1 {[%clk 0:01:11]}  Bc5+ {[%clk 0:00:39]} 30. Kf1 {[%clk 0:01:12]}  Qf8+ {[%clk 0:00:24]} 31. Qf3 {[%clk 0:01:07]}  Qxc8 {[%clk 0:00:24]} 32. Ke2 {[%clk 0:01:02]}  Qd7 {[%clk 0:00:20]} 33. Ra8+ {[%clk 0:00:58]}  Kg7 {[%clk 0:00:19]} 34. g4 {[%clk 0:00:52]}  Qe7 {[%clk 0:00:17]} 35. Rc8 {[%clk 0:00:48]}  Bd4 {[%clk 0:00:16]} 36. g5 {[%clk 0:00:46]}  h6 {[%clk 0:00:14]} 37. gxh6+ {[%clk 0:00:38]}  Kxh6 {[%clk 0:00:14]} 38. Qh3+ {[%clk 0:00:38]}  Kg5 {[%clk 0:00:14]} 39. Qg3+ {[%clk 0:00:36]}  Kh6 {[%clk 0:00:13]} 40. Rh8+ {[%clk 0:00:36]}  Kg7 {[%clk 0:00:13]} 41. Qh3 {[%clk 0:00:36]}  Qg5 {[%clk 0:00:13]} 42. Qh7+ {[%clk 0:00:35]}  Kf6 {[%clk 0:00:13]} 43. Rf8# {[%clk 0:00:36]} 1-0


[Site "https://www.chess.com"]